[Event "NOR-ch Various 2019"]
[Site "Larvik"]
[Date "2019.07.13"]
[Round "9.12"]
[White "Edoy, Rune"]
[Black "Lund, Scott Macody"]
[Result "1-0"]
[ECO "B01"]
[WhiteElo "1319"]
[BlackElo "1389"]
[Annotator "NA"]
[PlyCount "150"]
[EventDate "2019.07.06"]
[EventType "swiss"]
[EventCountry "NOR"]
[SourceTitle "playchess.com"]
[Source "ChessBase"]
[SourceQuality "1"]
[TimeControl "40/5400+30:1800+30"]

1. e4 {[%emt 0:00:00]} d5 {[%emt 0:00:02]} 2. exd5 {[%emt 0:00:00]} Qxd5 {[%emt 0:00:02]} 3. Nc3 {[%emt 0:00:09]} Qa5 {[%emt 0:00:01]} 4. Bc4 {[%emt 0:00:58]} c6 {[%emt 0:00:31]} 5. d4 {[%emt 0:01:56]} Bf5 {[%emt 0:02:16]} 6. Nf3 {[%emt 0:02:10]} Nf6 {[%emt 0:01:50]} 7. O-O {[%emt 0:01:28]} e6 {[%emt 0:00:15]} 8. Re1 {[%emt 0:00:28]} Be7 {[%emt 0:01:00]} 9. Bf4 {[%emt 0:01:24]} Nbd7 {[%emt 0:09:10]} 10. Ne5 {[%emt 0:03:43]} Nxe5 {[%emt 0:09:38]} 11. Rxe5 {[%emt 0:03:58]} Qd8 {[%emt 0:11:14]} 12. h3 {[%emt 0:02:03]} Bd6 {[%emt 0:08:47]} 13. g4 {[%emt 0:01:19]} Bxe5 {[%emt 0:01:47]} 14. Bxe5 {[%emt 0:00:24]} Bg6 {[%emt 0:01:30]} 15. f4 {[%emt 0:04:45]} Qe7 {[%emt 0:08:37]} 16. g5 {[%emt 0:00:26]} Nd7 {[%emt 0:02:07]} 17. Bxg7 {[%emt 0:01:30]} Rg8 {[%emt 0:00:21]} 18. Bh6 {[%emt 0:02:55]} Qb4 {[%emt 0:03:59]} 19. Bb3 {[%emt 0:01:45]} O-O-O {[%emt 0:01:29]} 20. Ne2 {[%emt 0:01:49]} Nb6 {[%emt 0:01:55]} 21. c3 {[%emt 0:00:24]} Qd6 {[%emt 0:01:03]} 22. c4 {[%emt 0:05:45]} Qe7 {[%emt 0:04:38]} 23. Ng3 {[%emt 0:01:10]} Qd7 {[%emt 0:02:10]} 24. c5 {[%emt 0:00:55]} Nd5 {[%emt 0:01:27]} 25. Qf3 {[%emt 0:02:23]} Ne7 {[%emt 0:03:25]} 26. Rd1 {[%emt 0:00:20]} Nf5 {[%emt 0:02:12]} 27. Nxf5 {[%emt 0:01:18]} Bxf5 {[%emt 0:01:02]} 28. h4 {[%emt 0:00:04]} Qc7 {[%emt 0:02:40]} 29. Qe3 {[%emt 0:03:51]} Qa5 {[%emt 0:03:08]} 30. Qe5 {[%emt 0:02:04]} Qc7 {[%emt 0:00:54]} 31. Bg7 {[%emt 0:03:07]} Qxe5 {[%emt 0:01:03]} 32. Bxe5 {[%emt 0:00:12]} b6 {[%emt 0:03:47]} 33. cxb6 {[%emt 0:01:54]} axb6 {[%emt 0:00:21]} 34. Rc1 {[%emt 0:00:18]} Be4 {[%emt 0:01:07]} 35. Bd1 {[%emt 0:00:29]} Kb7 {[%emt 0:02:26]} 36. Kf2 {[%emt 0:02:03]} Rc8 {[%emt 0:01:49]} 37. Bh5 {[%emt 0:00:19]} Bg6 {[%emt 0:00:29]} 38. Bf3 {[%emt 0:00:13]} b5 {[%emt 0:01:17]} 39. Ke3 {[%emt 0:00:00]} Kb6 {[%emt 0:00:47]} 40. b4 {[%emt 0:01:16]} Rgd8 {[%emt 0:00:57]} 41. Bf6 {[%emt 0:31:23]} Rd7 {[%emt 0:30:22]} 42. h5 {[%emt 0:02:28]} Bf5 {[%emt 0:00:22]} 43. Be4 {[%emt 0:00:16]} Bxe4 {[%emt 0:00:16]} 44. Kxe4 {[%emt 0:00:08]} Ra8 {[%emt 0:02:08]} 45. Rc2 {[%emt 0:01:09]} Rda7 {[%emt 0:00:00]} 46. Ke5 {[%emt 0:00:00]} Rxa2 {[%emt 0:00:00]} 47. Rxa2 {[%emt 0:00:00]} Rxa2 {[%emt 0:00:00]} 48. Kd6 {[%emt 0:00:00]} Ra7 {[%emt 0:00:00]} 49. Bd8+ {[%emt 0:00:00]} Kb7 {[%emt 0:00:00]} 50. Ke5 {[%emt 0:00:00]} Kc8 {[%emt 0:00:00]} 51. Bb6 {[%emt 0:00:00]} Rb7 {[%emt 0:00:00]} 52. Bc5 {[%emt 0:00:00]} Kd7 {[%emt 0:00:00]} 53. Kf6 {[%emt 0:00:00]} Ke8 {[%emt 0:00:00]} 54. Kg7 {[%emt 0:00:00]} f6+ {[%emt 0:00:00]} 55. Kxf6 {[%emt 0:00:00]} Rf7+ {[%emt 0:00:00]} 56. Ke5 {[%emt 0:00:00]} Kd7 {[%emt 0:00:00]} 57. Ke4 {[%emt 0:00:00]} Rg7 {[%emt 0:01:39]} 58. Bf8 {[%emt 0:00:00]} Rf7 {[%emt 0:00:44]} 59. Bh6 {[%emt 0:00:00]} Rf5 {[%emt 0:02:14]} 60. g6 {[%emt 0:00:00]} hxg6 {[%emt 0:00:24]} 61. hxg6 {[%emt 0:00:00]} Ke8 {[%emt 0:00:34]} 62. Bg7 {[%emt 0:00:00]} Rh5 {[%emt 0:01:55]} 63. Bf6 {[%emt 0:00:00]} Rg5 {[%emt 0:05:10]} 64. Bxg5 {[%emt 0:00:00]} Kf8 {[%emt 0:00:03]} 65. Ke5 {[%emt 0:00:00]} Kg7 {[%emt 0:00:02]} 66. Kxe6 {[%emt 0:00:00]} Kg8 {[%emt 0:00:19]} 67. Kd6 {[%emt 0:00:00]} c5 {[%emt 0:00:05]} 68. dxc5 {[%emt 0:00:00]} Kf8 {[%emt 0:00:15]} 69. c6 {[%emt 0:00:00]} Kg8 {[%emt 0:00:57]} 70. c7 {[%emt 0:00:00]} Kg7 {[%emt 0:00:01]} 71. Bd8 {[%emt 0:00:00]} Kf8 {[%emt 0:00:19]} 72. c8=Q {[%emt 0:00:00]} Kg7 {[%emt 0:00:14]} 73. f5 {[%emt 0:00:00]} Kh6 {[%emt 0:00:15]} 74. Bf6 {[%emt 0:00:00]} Kh5 {[%emt 0:00:16]} 75. g7 {[%emt 0:00:00]} Kh6 {[%emt 0:00:16]} 1-0

[Event "NOR-ch Various 2019"]
[Site "Larvik"]
[Date "2019.07.13"]
[Round "9.15"]
[White "Fossan, Petter"]
[Black "Bjornes, Leif"]
[Result "1-0"]
[ECO "B14"]
[WhiteElo "2295"]
[BlackElo "1898"]
[Annotator "ChessBase"]
[PlyCount "51"]
[EventDate "2019.07.06"]
[EventType "swiss"]
[EventCountry "NOR"]
[SourceTitle "playchess.com"]
[Source "ChessBase"]
[SourceQuality "1"]
[TimeControl "40/5400+30:1800+30"]

1. e4 {[%emt 0:00:00]} c6 {[%emt 0:00:00]} 2. d4 {[%emt 0:00:00]} d5 {[%emt 0:00:00]} 3. exd5 {[%emt 0:00:47]} cxd5 {[%emt 0:00:00]} 4. c4 {[%emt 0:00:09]} Nf6 {[%emt 0:00:14]} 5. Nc3 {[%emt 0:00:06]} g6 {[%emt 0:00:32]} 6. cxd5 {[%emt 0:02:03]} Nxd5 {[%emt 0:05:14]} 7. Qb3 {[%emt 0:01:59]} Nb6 {[%emt 0:05:56]} 8. Nf3 {[%emt 0:00:42]} Bg7 {[%emt 0:09:47]} 9. Bb5+ {[%emt 0:00:26]} N8d7 {[%emt 0:02:52]} 10. a4 {[%emt 0:09:26]} a6 {[%emt 0:01:30]} 11. Be2 {[%emt 0:00:54]} Nf6 {[%emt 0:00:48]} 12. a5 {[%emt 0:00:13]} Nbd7 {[%emt 0:00:28]} 13. O-O {[%emt 0:01:22]} O-O {[%emt 0:03:14]} 14. Ne5 {[%emt 0:16:23]} e6 {[%emt 0:06:26]} 15. Rd1 {[%emt 0:06:46]} Qe7 {[%emt 0:02:23]} 16. Nc4 {[%emt 0:09:34]} Nd5 {[%emt 0:11:02]} 17. Na4 {[%emt 0:05:02]} Qb4 {[%emt 0:01:42]} 18. Qxb4 {[%emt 0:00:53]} Nxb4 {[%emt 0:00:04]} 19. Nab6 {[%emt 0:00:09]} Nxb6 {[%emt 0:00:45]} 20. Nxb6 {[%emt 0:00:04]} Ra7 {[%emt 0:01:29]} 21. Bf4 {[%emt 0:03:58]} e5 {[%emt 0:02:18]} 22. Bxe5 {[%emt 0:03:51]} Bxe5 {[%emt 0:01:05]} 23. dxe5 {[%emt 0:00:03]} Bf5 {[%emt 0:04:40]} 24. f4 {[%emt 0:03:03]} h5 {[%emt 0:01:46]} 25. Rd6 {[%emt 0:02:17]} Be4 {[%emt 0:02:09]} 26. Ra4 {[%emt 0:02:00]} 1-0

[Event "NOR-ch Various 2019"]
[Site "Larvik"]
[Date "2019.07.13"]
[Round "9.16"]
[White "Wister, Tom R"]
[Black "Hansen, Svein E"]
[Result "0-1"]
[ECO "E24"]
[WhiteElo "1849"]
[BlackElo "2064"]
[Annotator "NA"]
[PlyCount "118"]
[EventDate "2019.07.06"]
[EventType "swiss"]
[EventCountry "NOR"]
[SourceTitle "playchess.com"]
[Source "ChessBase"]
[SourceQuality "1"]
[TimeControl "40/5400+30:1800+30"]

1. d4 {[%emt 0:00:00]} Nf6 {[%emt 0:00:00]} 2. c4 {[%emt 0:00:00]} e6 {[%emt 0:00:48]} 3. Nc3 {[%emt 0:00:02]} Bb4 {[%emt 0:00:34]} 4. a3 {[%emt 0:00:35]} Bxc3+ {[%emt 0:00:24]} 5. bxc3 {[%emt 0:00:08]} c5 {[%emt 0:00:18]} 6. f3 {[%emt 0:00:36]} Qa5 {[%emt 0:00:49]} 7. Bd2 {[%emt 0:01:00]} Nc6 {[%emt 0:01:36]} 8. e3 {[%emt 0:01:34]} d6 {[%emt 0:02:09]} 9. Bd3 {[%emt 0:00:15]} e5 {[%emt 0:01:20]} 10. d5 {[%emt 0:01:04]} Ne7 {[%emt 0:00:10]} 11. e4 {[%emt 0:01:02]} Bd7 {[%emt 0:01:15]} 12. Ne2 {[%emt 0:01:06]} a6 {[%emt 0:00:39]} 13. O-O {[%emt 0:03:05]} h6 {[%emt 0:02:10]} 14. f4 {[%emt 0:04:22]} Ng6 {[%emt 0:00:52]} 15. Qc2 {[%emt 0:08:49]} Qc7 {[%emt 0:06:51]} 16. Ng3 {[%emt 0:02:31]} O-O-O {[%emt 0:03:32]} 17. f5 {[%emt 0:04:21]} Ne7 {[%emt 0:00:27]} 18. a4 {[%emt 0:00:08]} a5 {[%emt 0:02:21]} 19. Rfb1 {[%emt 0:02:17]} b6 {[%emt 0:00:37]} 20. Qd1 {[%emt 0:07:15]} Rdg8 {[%emt 0:02:47]} 21. Rb2 {[%emt 0:02:20]} Kb7 {[%emt 0:00:08]} 22. Be3 {[%emt 0:01:16]} Ka7 {[%emt 0:00:36]} 23. Bf2 {[%emt 0:11:45]} Nc8 {[%emt 0:00:51]} 24. Nf1 {[%emt 0:01:34]} g5 {[%emt 0:04:23]} 25. g3 {[%emt 0:06:17]} Qd8 {[%emt 0:01:12]} 26. h3 {[%emt 0:03:34]} Ne8 {[%emt 0:00:36]} 27. Be3 {[%emt 0:00:40]} Ng7 {[%emt 0:01:07]} 28. Be2 {[%emt 0:02:03]} f6 {[%emt 0:00:16]} 29. Nd2 {[%emt 0:02:04]} Qe8 {[%emt 0:01:47]} 30. Nf1 {[%emt 0:03:56]} h5 {[%emt 0:00:40]} 31. Nh2 {[%emt 0:00:33]} Qf7 {[%emt 0:01:12]} 32. Qf1 {[%emt 0:00:58]} Ne7 {[%emt 0:02:27]} 33. Rab1 {[%emt 0:00:52]} Rb8 {[%emt 0:01:07]} 34. Bd1 {[%emt 0:02:28]} Qe8 {[%emt 0:03:39]} 35. Ra1 {[%emt 0:00:33]} Rb7 {[%emt 0:03:21]} 36. Rf2 {[%emt 0:00:21]} Ng8 {[%emt 0:01:14]} 37. Qd3 {[%emt 0:00:13]} Qc8 {[%emt 0:00:54]} 38. Bc2 {[%emt 0:04:37]} Nh6 {[%emt 0:00:42]} 39. Raf1 {[%emt 0:01:12]} Qd8 {[%emt 0:05:36]} 40. Qd2 {[%emt 0:00:22]} Nf7 {[%emt 0:01:08]} 41. Ra1 {[%emt 0:34:05]} Rf8 {[%emt 0:31:31]} 42. Nf1 {[%emt 0:00:25]} Nh6 {[%emt 0:00:32]} 43. Nh2 {[%emt 0:01:54]} Bc8 {[%emt 0:00:25]} 44. Ra2 {[%emt 0:01:10]} Re7 {[%emt 0:00:42]} 45. Qe2 {[%emt 0:00:26]} Bd7 {[%emt 0:00:33]} 46. Nf1 {[%emt 0:00:17]} Qc8 {[%emt 0:00:19]} 47. Nd2 {[%emt 0:01:07]} Nhxf5 {[%emt 0:04:24]} 48. exf5 {[%emt 0:01:13]} Nxf5 {[%emt 0:00:46]} 49. Bxf5 {[%emt 0:06:17]} Bxf5 {[%emt 0:00:07]} 50. Kf1 {[%emt 0:03:01]} Bxh3+ {[%emt 0:00:28]} 51. Ke1 {[%emt 0:00:06]} Bg4 {[%emt 0:00:18]} 52. Qd3 {[%emt 0:01:10]} e4 {[%emt 0:03:25]} 53. Qf1 {[%emt 0:00:41]} Bh3 {[%emt 0:01:52]} 54. Qh1 {[%emt 0:00:18]} Re5 {[%emt 0:09:08]} 55. Kd1 {[%emt 0:02:21]} Qg4+ {[%emt 0:00:58]} 56. Kc2 {[%emt 0:01:08]} Qxg3 {[%emt 0:00:16]} 57. Nf1 {[%emt 0:00:22]} Bxf1 {[%emt 0:00:09]} 58. Qxf1 {[%emt 0:00:07]} Qxe3 {[%emt 0:00:09]} 59. Rxf6 {[%emt 0:00:23]} Qd3+ {[%emt 0:00:13]} 0-1

[Event "NOR-ch Various 2019"]
[Site "Larvik"]
[Date "2019.07.13"]
[Round "9.17"]
[White "Nielsen, Andre"]
[Black "Heier, Odin Nikolai"]
[Result "1-0"]
[ECO "C54"]
[WhiteElo "2229"]
[BlackElo "1863"]
[Annotator "ChessBase"]
[PlyCount "135"]
[EventDate "2019.07.06"]
[EventType "swiss"]
[EventCountry "NOR"]
[SourceTitle "playchess.com"]
[Source "ChessBase"]
[SourceQuality "1"]
[TimeControl "40/5400+30:1800+30"]

1. e4 {[%emt 0:00:00]} e5 {[%emt 0:00:00]} 2. Nf3 {[%emt 0:00:10]} Nc6 {[%emt 0:00:00]} 3. Bc4 {[%emt 0:01:06]} Bc5 {[%emt 0:00:00]} 4. c3 {[%emt 0:00:30]} Nf6 {[%emt 0:00:01]} 5. d3 {[%emt 0:00:21]} O-O {[%emt 0:01:28]} 6. O-O {[%emt 0:02:27]} d6 {[%emt 0:04:16]} 7. Nbd2 {[%emt 0:01:44]} a6 {[%emt 0:00:35]} 8. Bb3 {[%emt 0:00:27]} Ba7 {[%emt 0:02:31]} 9. Re1 {[%emt 0:01:14]} Ne7 {[%emt 0:07:27]} 10. Nf1 {[%emt 0:08:44]} Ng6 {[%emt 0:01:59]} 11. Ng3 {[%emt 0:03:23]} Bd7 {[%emt 0:05:38]} 12. d4 {[%emt 0:04:21]} c5 {[%emt 0:05:36]} 13. dxe5 {[%emt 0:06:02]} dxe5 {[%emt 0:00:12]} 14. Bg5 {[%emt 0:01:53]} Bg4 {[%emt 0:02:41]} 15. h3 {[%emt 0:03:32]} Qxd1 {[%emt 0:07:36]} 16. Bxd1 {[%emt 0:00:37]} Bxf3 {[%emt 0:00:42]} 17. Bxf3 {[%emt 0:00:10]} Ne8 {[%emt 0:03:13]} 18. Rad1 {[%emt 0:01:59]} Nc7 {[%emt 0:08:35]} 19. Nf5 {[%emt 0:04:00]} Ne6 {[%emt 0:00:53]} 20. Be3 {[%emt 0:00:29]} c4 {[%emt 0:00:53]} 21. Bxa7 {[%emt 0:05:09]} Rxa7 {[%emt 0:00:18]} 22. Rd7 {[%emt 0:00:39]} Rfa8 {[%emt 0:01:54]} 23. Red1 {[%emt 0:08:02]} b5 {[%emt 0:00:57]} 24. Rxa7 {[%emt 0:13:04]} Rxa7 {[%emt 0:00:07]} 25. g3 {[%emt 0:00:33]} Ngf8 {[%emt 0:05:24]} 26. Rd5 {[%emt 0:05:36]} f6 {[%emt 0:01:20]} 27. Ne3 {[%emt 0:03:02]} Ng5 {[%emt 0:10:49]} 28. Bg2 {[%emt 0:01:06]} Nd7 {[%emt 0:04:03]} 29. h4 {[%emt 0:02:24]} Nf7 {[%emt 0:00:50]} 30. Bh3 {[%emt 0:01:46]} Nb6 {[%emt 0:02:47]} 31. Rc5 {[%emt 0:01:12]} Kf8 {[%emt 0:18:23]} 32. Rc6 {[%emt 0:03:07]} Rb7 {[%emt 0:03:25]} 33. Bc8 {[%emt 0:06:22]} Rb8 {[%emt 0:01:24]} 34. Bxa6 {[%emt 0:00:52]} Nd8 {[%emt 0:00:31]} 35. Rc5 {[%emt 0:02:07]} Na4 {[%emt 0:00:25]} 36. Rxb5 {[%emt 0:00:39]} Ra8 {[%emt 0:00:25]} 37. Bb7 {[%emt 0:01:32]} Nxb7 {[%emt 0:00:36]} 38. Rxb7 {[%emt 0:00:11]} Nc5 {[%emt 0:00:22]} 39. Rc7 {[%emt 0:02:08]} Nxe4 {[%emt 0:00:12]} 40. Rxc4 {[%emt 0:00:45]} Nd2 {[%emt 0:00:34]} 41. Rc7 {[%emt 0:30:48]} Rxa2 {[%emt 0:30:39]} 42. b4 {[%emt 0:03:42]} Ne4 {[%emt 0:00:00]} 43. b5 {[%emt 0:00:00]} Rb2 {[%emt 0:00:00]} 44. c4 {[%emt 0:00:00]} Nxf2 {[%emt 0:00:00]} 45. Nd5 {[%emt 0:00:00]} Ne4 {[%emt 0:00:00]} 46. b6 {[%emt 0:00:00]} Rb1+ {[%emt 0:00:00]} 47. Kg2 {[%emt 0:00:00]} Rb2+ {[%emt 0:00:00]} 48. Kf3 {[%emt 0:00:00]} Nd2+ {[%emt 0:00:00]} 49. Ke3 {[%emt 0:00:00]} Ke8 {[%emt 0:03:15]} 50. b7 {[%emt 0:00:00]} Nxc4+ {[%emt 0:00:23]} 51. Kd3 {[%emt 0:00:00]} Nd6 {[%emt 0:01:21]} 52. Rc8+ {[%emt 0:00:00]} Kd7 {[%emt 0:00:21]} 53. b8=Q {[%emt 0:00:00]} Rxb8 {[%emt 0:00:44]} 54. Rxb8 {[%emt 0:00:00]} Ke6 {[%emt 0:00:15]} 55. Ne3 {[%emt 0:00:00]} Nf7 {[%emt 0:00:52]} 56. Re8+ {[%emt 0:00:00]} Kd7 {[%emt 0:00:24]} 57. Rg8 {[%emt 0:00:00]} g6 {[%emt 0:00:38]} 58. Rg7 {[%emt 0:00:00]} Ke8 {[%emt 0:00:24]} 59. Rxh7 {[%emt 0:00:00]} Kf8 {[%emt 0:00:10]} 60. Ng4 {[%emt 0:00:00]} f5 {[%emt 0:00:54]} 61. Rxf7+ {[%emt 0:00:00]} Kxf7 {[%emt 0:00:11]} 62. Nxe5+ {[%emt 0:00:00]} Kf6 {[%emt 0:00:15]} 63. Nf3 {[%emt 0:00:00]} Kg7 {[%emt 0:00:40]} 64. Ke3 {[%emt 0:00:00]} Kh6 {[%emt 0:00:07]} 65. Kf4 {[%emt 0:00:00]} Kh5 {[%emt 0:00:10]} 66. Nd4 {[%emt 0:00:00]} Kh6 {[%emt 0:00:43]} 67. Nxf5+ {[%emt 0:00:00]} Kh5 {[%emt 0:00:25]} 68. g4# {[%emt 0:00:00]} 1-0

[Event "NOR-ch Various 2019"]
[Site "Larvik"]
[Date "2019.07.13"]
[Round "9.18"]
[White "Sjoberg, Isak"]
[Black "Kjaras, Alf Marius"]
[Result "1-0"]
[ECO "C41"]
[WhiteElo "2182"]
[BlackElo "1860"]
[Annotator "ChessBase"]
[PlyCount "61"]
[EventDate "2019.07.06"]
[EventType "swiss"]
[EventCountry "NOR"]
[SourceTitle "playchess.com"]
[Source "ChessBase"]
[SourceQuality "1"]
[TimeControl "40/5400+30:1800+30"]

1. e4 {[%emt 0:00:00]} d6 {[%emt 0:00:00]} 2. d4 {[%emt 0:00:33]} Nf6 {[%emt 0:00:00]} 3. Nc3 {[%emt 0:00:10]} Nbd7 {[%emt 0:00:07]} 4. Nf3 {[%emt 0:00:31]} e5 {[%emt 0:00:19]} 5. Bc4 {[%emt 0:01:24]} h6 {[%emt 0:02:50]} 6. a4 {[%emt 0:03:43]} c6 {[%emt 0:00:52]} 7. O-O {[%emt 0:06:46]} Qc7 {[%emt 0:00:54]} 8. Qe2 {[%emt 0:03:54]} Be7 {[%emt 0:01:24]} 9. Rd1 {[%emt 0:08:36]} g5 {[%emt 0:07:11]} 10. b4 {[%emt 0:10:42]} Nf8 {[%emt 0:05:21]} 11. Bb3 {[%emt 0:13:24]} Be6 {[%emt 0:10:21]} 12. d5 {[%emt 0:05:59]} Bg4 {[%emt 0:09:03]} 13. Qc4 {[%emt 0:05:44]} Rc8 {[%emt 0:14:43]} 14. dxc6 {[%emt 0:08:33]} Be6 {[%emt 0:01:26]} 15. Nd5 {[%emt 0:00:06]} Bxd5 {[%emt 0:02:10]} 16. exd5 {[%emt 0:00:27]} bxc6 {[%emt 0:01:31]} 17. dxc6 {[%emt 0:00:46]} d5 {[%emt 0:00:50]} 18. Qe2 {[%emt 0:04:30]} e4 {[%emt 0:15:38]} 19. Nd4 {[%emt 0:00:07]} Bxb4 {[%emt 0:00:43]} 20. Bb2 {[%emt 0:03:31]} Qe5 {[%emt 0:04:25]} 21. Rab1 {[%emt 0:01:46]} Ng6 {[%emt 0:05:29]} 22. Nb5 {[%emt 0:01:49]} Qf5 {[%emt 0:00:14]} 23. Bxf6 {[%emt 0:05:25]} Nf4 {[%emt 0:00:52]} 24. Qe3 {[%emt 0:03:49]} Qxf6 {[%emt 0:03:53]} 25. Bxd5 {[%emt 0:00:42]} Nxd5 {[%emt 0:01:13]} 26. Qxe4+ {[%emt 0:03:00]} Be7 {[%emt 0:02:19]} 27. Qxd5 {[%emt 0:00:38]} Rxc6 {[%emt 0:02:37]} 28. Nxa7 {[%emt 0:02:41]} Rd6 {[%emt 0:01:12]} 29. Rb8+ {[%emt 0:00:17]} Rd8 {[%emt 0:00:39]} 30. Rxd8+ {[%emt 0:00:30]} Bxd8 {[%emt 0:00:09]} 31. Qd7+ {[%emt 0:00:05]} 1-0

[Event "NOR-ch Various 2019"]
[Site "Larvik"]
[Date "2019.07.13"]
[Round "9.19"]
[White "Melaa, Sondre"]
[Black "Bruaset, Eivind"]
[Result "1/2-1/2"]
[ECO "D00"]
[WhiteElo "2118"]
[BlackElo "2074"]
[Annotator "ChessBase"]
[PlyCount "112"]
[EventDate "2019.07.06"]
[EventType "swiss"]
[EventCountry "NOR"]
[SourceTitle "playchess.com"]
[Source "ChessBase"]
[SourceQuality "1"]
[TimeControl "40/5400+30:1800+30"]

1. d4 {[%emt 0:01:54]} Nf6 {[%emt 0:00:00]} 2. Bg5 {[%emt 0:00:34]} d5 {[%emt 0:01:56]} 3. Bxf6 {[%emt 0:00:19]} exf6 {[%emt 0:00:59]} 4. e3 {[%emt 0:00:32]} c6 {[%emt 0:02:31]} 5. g3 {[%emt 0:03:34]} Bd6 {[%emt 0:01:24]} 6. Bg2 {[%emt 0:00:32]} O-O {[%emt 0:01:41]} 7. Ne2 {[%emt 0:01:56]} Re8 {[%emt 0:02:13]} 8. O-O {[%emt 0:02:30]} Nd7 {[%emt 0:10:46]} 9. Qd3 {[%emt 0:09:12]} g6 {[%emt 0:05:33]} 10. b3 {[%emt 0:16:43]} f5 {[%emt 0:04:24]} 11. c4 {[%emt 0:01:46]} Nf6 {[%emt 0:04:02]} 12. cxd5 {[%emt 0:03:40]} cxd5 {[%emt 0:03:15]} 13. Nbc3 {[%emt 0:02:08]} Qa5 {[%emt 0:10:13]} 14. Qb5 {[%emt 0:19:31]} Qxb5 {[%emt 0:02:04]} 15. Nxb5 {[%emt 0:00:08]} Bb8 {[%emt 0:00:11]} 16. Rac1 {[%emt 0:00:47]} Bd7 {[%emt 0:00:29]} 17. Nbc3 {[%emt 0:03:22]} Bc6 {[%emt 0:08:40]} 18. Na4 {[%emt 0:05:31]} Bb5 {[%emt 0:11:12]} 19. Rfe1 {[%emt 0:01:31]} Bxa4 {[%emt 0:00:10]} 20. bxa4 {[%emt 0:00:05]} Bd6 {[%emt 0:00:07]} 21. Rb1 {[%emt 0:02:47]} Rec8 {[%emt 0:02:11]} 22. Rxb7 {[%emt 0:02:32]} Rc2 {[%emt 0:02:17]} 23. Bf3 {[%emt 0:03:10]} g5 {[%emt 0:03:32]} 24. Rc1 {[%emt 0:02:06]} Rac8 {[%emt 0:00:59]} 25. Rbb1 {[%emt 0:02:00]} R8c4 {[%emt 0:05:19]} 26. Rxc2 {[%emt 0:01:04]} Rxc2 {[%emt 0:00:02]} 27. Rc1 {[%emt 0:00:15]} Rxc1+ {[%emt 0:04:04]} 28. Nxc1 {[%emt 0:00:02]} Kf8 {[%emt 0:00:20]} 29. Kf1 {[%emt 0:03:42]} Ke7 {[%emt 0:00:24]} 30. Bd1 {[%emt 0:01:16]} Ne4 {[%emt 0:02:21]} 31. Bc2 {[%emt 0:03:04]} Ke6 {[%emt 0:00:19]} 32. h3 {[%emt 0:04:10]} Nf6 {[%emt 0:03:06]} 33. Ke2 {[%emt 0:01:00]} h6 {[%emt 0:00:14]} 34. Kf3 {[%emt 0:00:23]} g4+ {[%emt 0:00:52]} 35. hxg4 {[%emt 0:00:47]} fxg4+ {[%emt 0:00:01]} 36. Ke2 {[%emt 0:00:45]} Nd7 {[%emt 0:00:48]} 37. Nd3 {[%emt 0:01:07]} f5 {[%emt 0:00:29]} 38. Bb3 {[%emt 0:00:55]} h5 {[%emt 0:01:23]} 39. Ne1 {[%emt 0:00:44]} Nf8 {[%emt 0:00:34]} 40. Ng2 {[%emt 0:00:54]} Ng6 {[%emt 0:00:14]} 41. Bc2 {[%emt 0:01:59]} Be7 {[%emt 0:01:18]} 42. Bd3 {[%emt 0:04:21]} h4 {[%emt 0:01:08]} 43. gxh4 {[%emt 0:00:06]} Bxh4 {[%emt 0:00:13]} 44. Bb5 {[%emt 0:00:43]} Bg5 {[%emt 0:00:20]} 45. Be8 {[%emt 0:03:34]} Ne7 {[%emt 0:00:30]} 46. Ne1 {[%emt 0:01:35]} f4 {[%emt 0:02:25]} 47. exf4 {[%emt 0:02:18]} Bxf4 {[%emt 0:00:02]} 48. Ng2 {[%emt 0:00:35]} Bc1 {[%emt 0:01:16]} 49. Ne3 {[%emt 0:03:58]} Bxe3 {[%emt 0:00:11]} 50. Kxe3 {[%emt 0:00:15]} Kf5 {[%emt 0:01:25]} 51. Bd7+ {[%emt 0:00:18]} Kg5 {[%emt 0:00:08]} 52. Be6 {[%emt 0:00:47]} a5 {[%emt 0:00:31]} 53. a3 {[%emt 0:01:05]} Nf5+ {[%emt 0:00:30]} 54. Kd3 {[%emt 0:00:16]} Ne7 {[%emt 0:00:17]} 55. Ke3 {[%emt 0:00:19]} Nf5+ {[%emt 0:00:17]} 56. Kd3 {[%emt 0:00:08]} Ne7 {[%emt 0:00:58] Ke4} 1/2-1/2

[Event "NOR-ch Various 2019"]
[Site "Larvik"]
[Date "2019.07.13"]
[Round "9.20"]
[White "Kizatbay, Abyl"]
[Black "Nordquelle, Daniel"]
[Result "1/2-1/2"]
[ECO "B94"]
[WhiteElo "2216"]
[BlackElo "2181"]
[Annotator "ChessBase"]
[PlyCount "75"]
[EventDate "2019.07.06"]
[EventType "swiss"]
[EventCountry "NOR"]
[SourceTitle "playchess.com"]
[Source "ChessBase"]
[SourceQuality "1"]
[TimeControl "40/5400+30:1800+30"]

1. e4 {[%emt 0:04:43]} c5 {[%emt 0:00:00]} 2. Nf3 {[%emt 0:00:19]} d6 {[%emt 0:00:00]} 3. d4 {[%emt 0:00:22]} cxd4 {[%emt 0:00:00]} 4. Nxd4 {[%emt 0:00:03]} Nf6 {[%emt 0:00:00]} 5. Nc3 {[%emt 0:00:03]} a6 {[%emt 0:00:05]} 6. Bg5 {[%emt 0:00:03]} Nbd7 {[%emt 0:00:05]} 7. Bc4 {[%emt 0:00:04]} Qc7 {[%emt 0:02:11]} 8. Qe2 {[%emt 0:01:00]} h6 {[%emt 0:00:29]} 9. Bh4 {[%emt 0:03:21]} g6 {[%emt 0:02:58]} 10. O-O-O {[%emt 0:00:55]} Bg7 {[%emt 0:01:58]} 11. Bb3 {[%emt 0:06:29]} O-O {[%emt 0:00:31]} 12. f4 {[%emt 0:01:46]} e5 {[%emt 0:05:06]} 13. fxe5 {[%emt 0:04:41]} dxe5 {[%emt 0:00:28]} 14. Nf3 {[%emt 0:00:24]} b5 {[%emt 0:03:34]} 15. Rhf1 {[%emt 0:07:01]} Bb7 {[%emt 0:01:03]} 16. Bxf6 {[%emt 0:06:06]} Nxf6 {[%emt 0:00:49]} 17. Nh4 {[%emt 0:00:18]} Kh7 {[%emt 0:05:15]} 18. Rf3 {[%emt 0:07:34]} Rad8 {[%emt 0:05:56]} 19. Rfd3 {[%emt 0:14:29]} Rxd3 {[%emt 0:02:24]} 20. Qxd3 {[%emt 0:03:37]} Rc8 {[%emt 0:00:08]} 21. a3 {[%emt 0:01:02]} Bf8 {[%emt 0:00:32]} 22. Qf3 {[%emt 0:04:08]} Kg7 {[%emt 0:01:48]} 23. Rf1 {[%emt 0:01:34]} Qe7 {[%emt 0:13:37]} 24. Nd5 {[%emt 0:10:54]} Bxd5 {[%emt 0:02:56]} 25. exd5 {[%emt 0:01:05]} Ne8 {[%emt 0:00:05]} 26. Qg4 {[%emt 0:03:26]} Nd6 {[%emt 0:08:03]} 27. Nf5+ {[%emt 0:00:54]} Nxf5 {[%emt 0:00:08]} 28. Rxf5 {[%emt 0:00:01]} Rc7 {[%emt 0:03:54]} 29. Rf1 {[%emt 0:01:51]} Qd6 {[%emt 0:05:05]} 30. Kb1 {[%emt 0:02:08]} Kh7 {[%emt 0:00:48]} 31. Qe2 {[%emt 0:03:41]} Bg7 {[%emt 0:02:06]} 32. g4 {[%emt 0:00:32]} Re7 {[%emt 0:08:56]} 33. Qe4 {[%emt 0:00:23]} Bf6 {[%emt 0:00:43]} 34. Rf3 {[%emt 0:02:35]} Rc7 {[%emt 0:01:12]} 35. Rh3 {[%emt 0:03:29]} Bg5 {[%emt 0:00:41]} 36. Rf3 {[%emt 0:01:06]} Kg7 {[%emt 0:00:23]} 37. Rf1 {[%emt 0:00:40]} Rc8 {[%emt 0:04:56]} 38. Re1 {[%emt 0:02:40]} 1/2-1/2